fUSD/lending_fUSD_20250416
["ID","MTS","AMOUNT","RATE_DAILY","PERIOD"]
[358146133,1744766976947,-150.0,0.00057837,120]
[358146134,1744766976993,-150.0,0.00057867,120]
[358146135,1744766977037,-150.0,0.00057869,120]
[358146136,1744766977076,-150.0,0.00057972,120]
[358146137,1744766977117,-150.0,0.00057972,120]
[358146138,1744766977153,-150.0,0.00057998,120]
[358146139,1744766977191,-692362.6,0.00058,120]
[358146140,1744766977225,-199.0,0.00058,120]
[358146141,1744766977258,-198.0,0.00058,120]
[358146142,1744766977291,-398.0,0.00058,120]
[358146143,1744766977324,-199.0,0.00058,120]
[358146144,1744766977357,-151.0,0.00058027,120]
[358146145,1744766977394,-150.0,0.00058062,120]
[358146146,1744766977426,-150.0,0.00058062,120]
[358146147,1744766977457,-150.0,0.00058077,120]
[358146148,1744766977491,-500.0,0.00058081,120]
[358146149,1744766977521,-500.0,0.00058081,120]
[358146150,1744766977553,-500.0,0.00058081,120]
[358146151,1744766977583,-1357.49,0.00058082,120]
[358146152,1744766977615,-1912.02,0.00058082,120]
[358146153,1744766977646,-1000.0,0.00058082,120]
[358146154,1744766977678,-500.0,0.00058082,120]
[358146155,1744766977710,-500.0,0.00058082,120]
[358146156,1744766977746,-724.2,0.00058082,120]
[358146157,1744766977777,-1237.22,0.00058082,120]
[358146158,1744766977810,-500.0,0.00058082,120]
[358146159,1744766977842,-562.55,0.00058082,120]
[358146160,1744766977873,-686.5,0.00058082,120]
[358146161,1744766977906,-500.0,0.00058082,120]
[358146162,1744766977939,-515.52,0.00058082,120]
[358146163,1744766977972,-500.0,0.00058082,120]
[358146164,1744766978205,-982.4,0.00058082,120]
[358146165,1744766978243,-794.88,0.00058082,118]
[358146166,1744766978278,-1301.59,0.00058082,120]
[358146167,1744766978315,-939.4,0.00058082,120]
[358146168,1744766978349,-500.0,0.00058082,120]
[358146169,1744766978388,-1003.03,0.00058082,120]
[358146170,1744766978423,-1035.81,0.00058082,120]
[358146171,1744766978455,-500.0,0.00058082,120]
[358146172,1744766978489,-773.7,0.00058082,120]
[358146173,1744766978521,-782.69,0.00058082,120]
[358146174,1744766978552,-587.2,0.00058082,120]
[358146175,1744766978583,-500.0,0.00058082,120]
[358146176,1744766978616,-527.62,0.00058082,120]
[358146177,1744766978648,-500.0,0.00058082,120]
[358146178,1744766978681,-500.0,0.00058082,120]
[358146179,1744766978712,-979.94,0.00058082,120]
[358146180,1744766978744,-150.0,0.00058126,120]
[358146181,1744766978775,-150.0,0.00058182,120]
[358146182,1744766978807,-150.0,0.00058182,120]
[358146183,1744766978839,-150.0,0.00058255,120]
[358146184,1744766978870,-150.0,0.00058287,120]
[358146185,1744766978902,-150.0,0.00058287,120]
[358146186,1744766978933,-500.0,0.00058355,120]
[358146187,1744766978965,-794.54,0.00058355,120]
[358146188,1744766978996,-1357.49,0.00058356,120]
[358146189,1744766979027,-1912.02,0.00058356,120]
[358146190,1744766979062,-1000.0,0.00058356,120]
[358146191,1744766979095,-500.0,0.00058356,120]
[358146192,1744766979128,-346.03397493,0.00058356,120]
[358146193,1744766979161,-724.2,0.00058356,120]
[358146194,1744766979196,-1237.22,0.00058356,120]
[358146195,1744766979231,-500.0,0.00058356,120]
[358146196,1744766979264,-562.55,0.00058356,120]
[358146197,1744766979298,-686.5,0.00058356,120]
[358146198,1744766979332,-500.0,0.00058356,120]
[358146199,1744766979366,-515.52,0.00058356,120]
[358146200,1744766979398,-500.0,0.00058356,120]
[358146201,1744766979430,-982.4,0.00058356,120]
[358146202,1744766979461,-794.88,0.00058356,118]
[358146203,1744766979493,-1301.59,0.00058356,120]
[358146204,1744766979525,-939.4,0.00058356,120]
[358146205,1744766979557,-210.54433299,0.00058356,120]
[358146206,1744766979600,-1003.03,0.00058356,120]
[358146207,1744766979636,-1035.81,0.00058356,120]
[358146208,1744766979668,-500.0,0.00058356,120]
[358146209,1744766979701,-773.7,0.00058356,120]
[358146210,1744766979734,-782.69,0.00058356,120]
[358146211,1744766979766,-587.2,0.00058356,120]
[358146212,1744766979800,-500.0,0.00058356,120]
[358146213,1744766979833,-527.62,0.00058356,120]
[358146214,1744766979865,-500.0,0.00058356,120]
[358146215,1744766979900,-256.69047449,0.00058356,120]
[358146216,1744766979931,-979.94,0.00058356,120]
[358146217,1744766979964,-150.0,0.00058383,120]
[358146218,1744766979998,-150.0,0.00058392,120]
[358146219,1744766980031,-150.0,0.00058392,120]
[358146220,1744766980064,-150.0,0.00058497,120]
[358146221,1744766980099,-150.0,0.00058512,120]
[358146222,1744766980136,-150.0,0.00058512,120]
[358146223,1744766980171,-150.0,0.00058512,120]
[358146224,1744766980205,-150.0,0.00058602,120]
[358146225,1744766980240,-150.0,0.00058602,120]
[358146226,1744766980273,-500.0,0.00058629,120]
[358146227,1744766980319,-1357.49,0.0005863,120]
[358146228,1744766980367,-1912.02,0.0005863,120]
[358146229,1744766980412,-209.0,0.0005863,120]
[358146230,1744766980456,-1000.0,0.0005863,120]
[358146231,1744766980499,-500.0,0.0005863,120]
[358146232,1744766980543,-724.2,0.0005863,120]
[358146233,1744766980581,-1237.22,0.0005863,120]
[358146234,1744766980626,-500.0,0.0005863,120]
[358146235,1744766980669,-210.0,0.0005863,120]
[358146236,1744766980713,-562.55,0.0005863,120]
[358146237,1744766980757,-686.5,0.0005863,120]
[358146238,1744766980801,-500.0,0.0005863,120]
[358146239,1744766980845,-515.52,0.0005863,120]
[358146240,1744766980888,-500.0,0.0005863,120]
[358146241,1744766980933,-982.4,0.0005863,120]
[358146242,1744766980976,-794.88,0.0005863,118]
[358146243,1744766981016,-1301.59,0.0005863,120]
[358146244,1744766981055,-939.4,0.0005863,120]
[358146245,1744766981099,-1003.03,0.0005863,120]
[358146246,1744766981138,-1035.81,0.0005863,120]
[358146247,1744766981179,-500.0,0.0005863,120]
[358146248,1744766981223,-773.7,0.0005863,120]
[358146249,1744766981263,-782.69,0.0005863,120]
[358146250,1744766981305,-587.2,0.0005863,120]
[358146251,1744766981346,-157.25838387,0.0005863,120]
[358146252,1744766981390,-527.62,0.0005863,120]
[358146253,1744766981431,-500.0,0.0005863,120]
[358146254,1744766981470,-979.94,0.0005863,120]
[358146255,1744766981509,-150.0,0.00058641,120]
[358146256,1744766981547,-150.0,0.00058707,120]
[358146257,1744766981585,-150.0,0.00058737,120]
[358146258,1744766981624,-150.0,0.00058769,120]
[358146259,1744766981662,-150.0,0.00058812,120]
[358146260,1744766981699,-150.0,0.00058812,120]
[358146261,1744766981739,-150.0,0.00058898,120]
[358146262,1744766981778,-500.0,0.00058903,120]
[358146263,1744766981818,-1357.49,0.00058904,120]
[358146264,1744766981857,-1912.02,0.00058904,120]
[358146265,1744766981898,-500.0,0.00058904,120]
[358146266,1744766981937,-724.2,0.00058904,120]
[358146267,1744766981977,-1237.22,0.00058904,120]
[358146268,1744766982021,-500.0,0.00058904,120]
[358146269,1744766982064,-562.55,0.00058904,120]
[358146270,1744766982105,-686.5,0.00058904,120]
[358146271,1744766982150,-500.0,0.00058904,120]
[358146272,1744766982191,-515.52,0.00058904,120]
[358146273,1744766982233,-500.0,0.00058904,120]
[358146274,1744766982275,-982.4,0.00058904,120]
[358146275,1744766982321,-794.88,0.00058904,118]
[358146276,1744766982363,-1301.59,0.00058904,120]
[358146277,1744766982401,-939.4,0.00058904,120]
[358146278,1744766982439,-1003.03,0.00058904,120]
[358146279,1744766982475,-1035.81,0.00058904,120]
[358146280,1744766982511,-500.0,0.00058904,120]
[358146281,1744766982547,-773.7,0.00058904,120]
[358146282,1744766982585,-782.69,0.00058904,120]
[358146283,1744766982622,-587.2,0.00058904,120]
[358146284,1744766982660,-527.62,0.00058904,120]
[358146285,1744766982696,-500.0,0.00058904,120]
[358146286,1744766982733,-979.94,0.00058904,120]
[358146287,1744766982770,-150.0,0.00058917,120]
[358146288,1744766982806,-150.0,0.00058962,120]
[358146289,1744766983099,-150.0,0.00058962,120]
[358146290,1744766983149,-1000000.0,0.00059,120]
[358146291,1744766983188,-151.0,0.00059,120]
[358146292,1744766983225,-179.52905327,0.00059,120]
[358146293,1744766983260,-151.0,0.00059,120]
[358146294,1744766983294,-151.0,0.00059,120]
[358146295,1744766983327,-151.0,0.00059,120]
[358146296,1744766983359,-151.0,0.00059,120]
[358146297,1744766983394,-167.981083,0.00059,120]
[358146298,1744766983427,-167.981083,0.00059,120]
[358146299,1744766983459,-151.0,0.00059,120]
[358146300,1744766983492,-151.0,0.00059,120]
[358146301,1744766983525,-151.0,0.00059,120]
[358146302,1744766983558,-151.0,0.00059,120]
[358146303,1744766983592,-151.0,0.00059,120]
[358146304,1744766983628,-151.0,0.00059,120]
[358146305,1744766983662,-151.0,0.00059,120]
[358146306,1744766983697,-270.319531,0.00059,120]
[358146307,1744766983731,-2948.576732,0.00059,120]
[358146308,1744766983764,-270.319531,0.00059,120]
[358146309,1744766983799,-2948.576732,0.00059,120]
[358146310,1744766983832,-1292.716265,0.00059,120]
[358146311,1744766983865,-1292.716265,0.00059,120]
[358146312,1744766983898,-151.0,0.00059,120]
[358146313,1744766983930,-151.0,0.00059,120]
[358146314,1744766983962,-151.0,0.00059,120]
[358146315,1744766983995,-151.0,0.00059,120]
[358146316,1744766984027,-151.0,0.00059,120]
[358146317,1744766984060,-151.0,0.00059,120]
[358146318,1744766984093,-662.591677,0.00059,120]
[358146319,1744766984129,-662.591677,0.00059,120]
[358146320,1744766984164,-150.0,0.00059022,120]
[358146321,1744766984197,-150.0,0.00059022,120]
[358146322,1744766984232,-150.0,0.00059026,120]
[358146323,1744766984265,-150.0,0.00059127,120]
[358146324,1744766984299,-150.0,0.00059155,120]
[358146325,1744766984333,-500.0,0.00059177,120]
[358146326,1744766984368,-500.0,0.00059177,120]
[358146327,1744766984402,-500.0,0.00059177,120]
[358146328,1744766984434,-1357.49,0.00059178,120]
[358146329,1744766984467,-1912.02,0.00059178,120]
[358146330,1744766984500,-500.0,0.00059178,120]
[358146331,1744766984532,-724.2,0.00059178,120]
[358146332,1744766984566,-1237.22,0.00059178,120]
[358146333,1744766984601,-500.0,0.00059178,120]
[358146334,1744766984635,-562.55,0.00059178,120]
[358146335,1744766984671,-686.5,0.00059178,120]
[358146336,1744766984707,-500.0,0.00059178,120]
[358146337,1744766984743,-515.52,0.00059178,120]
[358146338,1744766984778,-500.0,0.00059178,120]
[358146339,1744766984813,-982.4,0.00059178,120]
[358146340,1744766984849,-794.88,0.00059178,118]
[358146341,1744766984886,-1301.59,0.00059178,120]
[358146342,1744766984921,-939.4,0.00059178,120]
[358146343,1744766984958,-1003.03,0.00059178,120]
[358146344,1744766984994,-1035.81,0.00059178,120]
[358146345,1744766985030,-500.0,0.00059178,120]
[358146346,1744766985067,-773.7,0.00059178,120]
[358146347,1744766985105,-782.69,0.00059178,120]
[358146348,1744766985143,-587.2,0.00059178,120]
[358146349,1744766985182,-527.62,0.00059178,120]
[358146350,1744766985219,-500.0,0.00059178,120]
[358146351,1744766985256,-979.94,0.00059178,120]
[358146352,1744766985294,-150.0,0.00059187,120]
[358146353,1744766985332,-150.0,0.00059201,120]
[358146354,1744766985369,-150.0,0.00059232,120]
[358146355,1744766985404,-150.0,0.00059232,120]
[358146356,1744766985439,-150.0,0.00059284,120]
[358146357,1744766985476,-150.0,0.00059337,120]
[358146358,1744766985514,-150.0,0.00059412,120]
[358146359,1744766985550,-150.0,0.00059412,120]
[358146360,1744766985586,-150.0,0.00059412,120]
[358146361,1744766985621,-150.0,0.00059442,120]
[358146362,1744766985656,-150.0,0.00059442,120]
[358146363,1744766985692,-500.0,0.00059451,120]
[358146364,1744766985729,-1357.49,0.00059452,120]
[358146365,1744766985767,-1912.02,0.00059452,120]
[358146366,1744766985804,-500.0,0.00059452,120]
[358146367,1744766985842,-724.2,0.00059452,120]
[358146368,1744766985879,-1237.22,0.00059452,120]
[358146369,1744766985917,-500.0,0.00059452,120]
[358146370,1744766985954,-562.55,0.00059452,120]
[358146371,1744766985992,-686.5,0.00059452,120]
[358146372,1744766986031,-607.50794,0.00059452,120]
[358146373,1744766986075,-515.52,0.00059452,120]
[358146374,1744766986114,-589.74181056,0.00059452,120]
[358146375,1744766986156,-982.4,0.00059452,120]
[358146376,1744766986196,-794.88,0.00059452,118]
[358146377,1744766986237,-1301.59,0.00059452,120]
[358146378,1744766986277,-939.4,0.00059452,120]
[358146379,1744766986317,-1003.03,0.00059452,120]
[358146380,1744766986356,-1035.81,0.00059452,120]
[358146381,1744766986571,-500.0,0.00059452,120]
[358146382,1744766986611,-773.7,0.00059452,120]
[358146383,1744766986648,-782.69,0.00059452,120]
[358146384,1744766986685,-587.2,0.00059452,120]
[358146385,1744766986720,-527.62,0.00059452,120]
[358146386,1744766986756,-500.0,0.00059452,120]
[358146387,1744766986790,-979.94,0.00059452,120]
[358146388,1744766986823,-150.0,0.00059541,120]
[358146389,1744766986856,-150.0,0.00059547,120]
[358146390,1744766986889,-150.0,0.00059637,120]
[358146391,1744766986922,-150.0,0.00059652,120]
[358146392,1744766986956,-150.0,0.00059652,120]
[358146393,1744766986991,-150.0,0.00059669,120]
[358146394,1744766987026,-500.0,0.00059725,120]
[358146395,1744766987061,-500.0,0.00059725,120]
[358146396,1744766987095,-1357.49,0.00059726,120]
[358146397,1744766987133,-1912.02,0.00059726,120]
[358146398,1744766987170,-500.0,0.00059726,120]
[358146399,1744766987205,-724.2,0.00059726,120]
[358146400,1744766987241,-1237.22,0.00059726,120]
[358146401,1744766987278,-500.0,0.00059726,120]
[358146402,1744766987314,-562.55,0.00059726,120]
[358146403,1744766987349,-686.5,0.00059726,120]
[358146404,1744766987384,-515.52,0.00059726,120]
[358146405,1744766987420,-982.4,0.00059726,120]
[358146406,1744766987454,-794.88,0.00059726,118]
[358146407,1744766987489,-1301.59,0.00059726,120]
[358146408,1744766987522,-939.4,0.00059726,120]
[358146409,1744766987554,-1003.03,0.00059726,120]
[358146410,1744766987586,-1035.81,0.00059726,120]
[358146411,1744766987621,-207.54805856,0.00059726,120]
[358146412,1744766987655,-773.7,0.00059726,120]
[358146413,1744766987688,-782.69,0.00059726,120]
[358146414,1744766987722,-587.2,0.00059726,120]
[358146415,1744766987756,-527.62,0.00059726,120]
[358146416,1744766987789,-500.0,0.00059726,120]
[358146417,1744766987823,-979.94,0.00059726,120]
[358146418,1744766987855,-150.0,0.00059757,120]
[358146419,1744766987889,-150.0,0.00059798,120]
[358146420,1744766987922,-1068.0,0.0005985,120]
[358146421,1744766987955,-150.0,0.00059862,120]
[358146422,1744766987988,-150.0,0.00059862,120]
[358146423,1744766988022,-150.0,0.00059862,120]
[358146424,1744766988062,-150.0,0.00059862,120]
[358146425,1744766988099,-1941.51436889,0.00059893,120]
[358146426,1744766988137,-154.985792,0.000599,120]
[358146427,1744766988174,-151.0,0.000599,120]
[358146428,1744766988213,-150.0,0.00059927,120]
[358146429,1744766988249,-150.0,0.00059967,120]
[358146430,1744766988286,-1357.49,0.00059999,120]
[358146431,1744766988321,-1912.02,0.00059999,120]
[358146432,1744766988356,-500.0,0.00059999,120]
[358146433,1744766988394,-724.2,0.00059999,120]
[358146434,1744766988429,-1237.22,0.00059999,120]
[358146435,1744766988466,-500.0,0.00059999,120]
[358146436,1744766988504,-562.55,0.00059999,120]
[358146437,1744766988540,-686.5,0.00059999,120]
[358146438,1744766988576,-515.52,0.00059999,120]
[358146439,1744766988613,-982.4,0.00059999,120]
[358146440,1744766988649,-794.88,0.00059999,118]
[358146441,1744766988686,-1301.59,0.00059999,120]
[358146442,1744766988725,-939.4,0.00059999,120]
[358146443,1744766988764,-1003.03,0.00059999,120]
[358146444,1744766988801,-1035.81,0.00059999,120]
[358146445,1744766988838,-773.7,0.00059999,120]
[358146446,1744766988874,-782.69,0.00059999,120]
[358146447,1744766988910,-587.2,0.00059999,120]
[358146448,1744766988947,-527.62,0.00059999,120]
[358146449,1744766988982,-500.0,0.00059999,120]
[358146450,1744766989018,-979.94,0.00059999,120]
[358146451,1744766989054,-500.0,0.00059999,120]
[358146452,1744766989092,-1000000.0,0.0006,120]
[358146453,1744766989136,-1000000.0,0.0006,120]
[358146454,1744766989177,-1000000.0,0.0006,120]
[358146455,1744766989216,-1000000.0,0.0006,120]
[358146456,1744766989256,-82210.0,0.0006,120]
[358146457,1744766989293,-199.0,0.0006,120]
[358146458,1744766989329,-338.194124,0.0006,120]
[358146459,1744766989365,-198.0,0.0006,120]
[358146460,1744766989400,-151.0,0.0006,120]
[358146461,1744766989435,-398.0,0.0006,120]
[358146462,1744766989467,-1342.50377907,0.0006,115]
[358146463,1744766989501,-199.0,0.0006,120]
[358146464,1744766989533,-2855.63420058,0.0006,120]
[358146465,1744766989568,-162.664649,0.0006,120]
[358146466,1744766989600,-151.0,0.0006,120]
[358146467,1744766989634,-274.8649,0.0006,120]
[358146468,1744766989667,-750.22454988,0.0006,120]
[358146469,1744766989703,-267.055128,0.0006,120]
[358146470,1744766989737,-151.0,0.0006,120]
[358146471,1744766989771,-267.055128,0.0006,120]
[358146472,1744766989803,-150.0,0.0006,120]
[358146473,1744766989837,-150.999999,0.0006,120]
[358146474,1744766989873,-487.297552,0.0006,120]
[358146475,1744766990055,-487.297552,0.0006,120]
[358146476,1744766990095,-150.0,0.00060055,120]
[358146477,1744766990135,-150.0,0.00060072,120]
[358146478,1744766990175,-150.0,0.00060072,120]
[358146479,1744766990215,-150.0,0.00060087,120]
[358146480,1744766990253,-150.0,0.00060177,120]
[358146481,1744766990291,-150.0,0.00060184,120]
[358146482,1744766990327,-1357.49,0.00060273,120]
[358146483,1744766990361,-163.88812119,0.00060273,120]
[358146484,1744766990395,-150.0,0.00060273,120]
[358146485,1744766990428,-150.0,0.00060273,120]
[358146486,1744766990461,-150.0,0.00060273,120]
[358146487,1744766990494,-200.0,0.00060273,120]
[358146488,1744766990526,-150.1096668,0.00060273,120]
[358146489,1744766990559,-150.40807144,0.00060273,120]
[358146490,1744766990591,-500.0,0.00060273,120]
[358146491,1744766990623,-500.0,0.00060273,120]
[358146492,1744766990656,-338.41248686,0.00060273,120]
[358146493,1744766990689,-150.0,0.00060273,120]
[358146494,1744766990722,-150.0,0.00060273,120]
[358146495,1744766990756,-150.0,0.00060273,120]
[358146496,1744766990790,-200.0,0.00060273,120]
[358146497,1744766990822,-150.0,0.00060273,120]
[358146498,1744766990856,-150.0,0.00060273,120]
[358146499,1744766990889,-150.0,0.00060273,120]
[358146500,1744766990921,-200.0,0.00060273,120]
[358146501,1744766990954,-500.0,0.00060273,120]
[358146502,1744766990987,-500.0,0.00060273,120]
[358146503,1744766991020,-500.0,0.00060273,120]
[358146504,1744766991053,-500.0,0.00060273,120]
[358146505,1744766991086,-500.0,0.00060273,120]
[358146506,1744766991120,-500.0,0.00060273,120]
[358146507,1744766991157,-575.0,0.00060273,120]
[358146508,1744766991193,-150.07734728,0.00060273,120]
[358146509,1744766991228,-1912.02,0.00060273,120]
[358146510,1744766991264,-500.0,0.00060273,120]
[358146511,1744766991301,-724.2,0.00060273,120]
[358146512,1744766991338,-1237.22,0.00060273,120]
[358146513,1744766991376,-474.06,0.00060273,120]
[358146514,1744766991416,-562.55,0.00060273,120]
[358146515,1744766991452,-686.5,0.00060273,120]
[358146516,1744766991488,-515.52,0.00060273,120]
[358146518,1744766991522,-500.0,0.00060273,120]
[358146521,1744766991557,-982.4,0.00060273,120]
[358146522,1744766991592,-794.88,0.00060273,118]
[358146523,1744766991627,-1301.59,0.00060273,120]
[358146524,1744766991661,-939.4,0.00060273,120]
[358146525,1744766991696,-1003.03,0.00060273,120]
[358146526,1744766991730,-1035.81,0.00060273,120]
[358146527,1744766991763,-773.7,0.00060273,120]
[358146528,1744766991795,-782.69,0.00060273,120]
[358146529,1744766991830,-587.2,0.00060273,120]
[358146530,1744766991864,-527.62,0.00060273,120]
[358146531,1744766991898,-500.0,0.00060273,120]
[358146532,1744766991931,-979.94,0.00060273,120]
[358146533,1744766991965,-500.0,0.00060273,120]
[358146534,1744766992000,-3080.72,0.00060274,120]
[358146535,1744766992035,-150.0,0.00060282,120]
[358146536,1744766992069,-150.0,0.00060282,120]
[358146537,1744766992102,-150.0,0.00060312,120]
[358146538,1744766992138,-150.0,0.00060312,120]
[358146539,1744766992175,-150.0,0.00060312,120]
[358146540,1744766992210,-900.98,0.00060317,120]
[358146541,1744766992246,-150.0,0.00060387,120]
[358146542,1744766992279,-150.0,0.00060441,120]
[358146543,1744766992312,-153.0,0.0006047,60]
[358146544,1744766992344,-153.0,0.0006047,60]
[358146545,1744766992375,-153.0,0.0006047,60]
[358146546,1744766992411,-153.0,0.0006047,60]
[358146547,1744766992442,-153.0,0.0006047,60]
[358146548,1744766992474,-153.0,0.0006047,60]
[358146549,1744766992506,-153.0,0.0006047,60]
[358146550,1744766992538,-153.0,0.0006047,60]
[358146551,1744766992570,-153.0,0.0006047,60]
[358146552,1744766992601,-153.0,0.0006047,60]
[358146553,1744766992633,-153.0,0.0006047,60]
[358146554,1744766992667,-160.0,0.00060473,60]
[358146555,1744766992701,-160.0,0.00060473,60]
[358146556,1744766992735,-160.0,0.00060473,60]
[358146557,1744766992769,-160.0,0.00060473,60]
[358146558,1744766992803,-160.0,0.00060473,60]
[358146559,1744766992838,-160.0,0.00060473,60]
[358146560,1744766992872,-160.0,0.00060473,60]
[358146561,1744766992907,-160.0,0.00060473,60]
[358146562,1744766992940,-160.0,0.00060473,60]
[358146563,1744766992972,-160.0,0.00060473,60]
[358146564,1744766993005,-160.0,0.00060473,60]
[358146565,1744766993037,-160.0,0.00060473,60]
[358146566,1744766993070,-160.0,0.00060473,60]
[358146567,1744766993102,-160.0,0.00060473,60]
[358146568,1744766993137,-153.0,0.0006048,60]
[358146569,1744766993170,-153.0,0.0006048,60]
[358146570,1744766993204,-153.0,0.0006048,60]
[358146571,1744766993236,-153.0,0.0006048,60]
[358146572,1744766993269,-153.0,0.0006048,60]
[358146573,1744766993450,-153.0,0.0006048,60]
[358146574,1744766993489,-153.0,0.0006048,60]
[358146575,1744766993524,-153.0,0.0006048,60]
[358146576,1744766993558,-153.0,0.0006048,60]
[358146577,1744766993591,-153.0,0.0006048,60]
[358146578,1744766993625,-153.0,0.0006048,60]
[358146579,1744766993659,-160.0,0.00060482,60]
[358146580,1744766993693,-160.0,0.00060482,60]
[358146581,1744766993726,-160.0,0.00060482,60]
[358146582,1744766993759,-160.0,0.00060482,60]
[358146583,1744766993791,-160.0,0.00060482,60]
[358146584,1744766993823,-160.0,0.00060482,60]
[358146585,1744766993856,-160.0,0.00060482,60]
[358146586,1744766993888,-160.0,0.00060482,60]
[358146587,1744766993920,-160.0,0.00060482,60]
[358146588,1744766993953,-160.0,0.00060482,60]
[358146589,1744766993986,-160.0,0.00060482,60]
[358146590,1744766994022,-160.0,0.00060482,60]
[358146591,1744766994056,-160.0,0.00060482,60]
[358146592,1744766994091,-160.0,0.00060482,60]
[358146593,1744766994127,-153.0,0.00060489,60]
[358146594,1744766994165,-153.0,0.00060489,60]
[358146595,1744766994202,-153.0,0.00060489,60]
[358146596,1744766994238,-153.0,0.00060489,60]
[358146597,1744766994273,-153.0,0.00060489,60]
[358146598,1744766994308,-153.0,0.00060489,60]
[358146599,1744766994343,-153.0,0.00060489,60]
[358146600,1744766994376,-153.0,0.00060489,60]
[358146601,1744766994414,-153.0,0.00060489,60]
[358146602,1744766994448,-153.0,0.00060489,60]
[358146603,1744766994484,-153.0,0.00060489,60]
[358146604,1744766994518,-160.0,0.00060491,60]
[358146605,1744766994552,-160.0,0.00060491,60]
[358146606,1744766994585,-160.0,0.00060491,60]
[358146607,1744766994617,-160.0,0.00060491,60]
[358146608,1744766994652,-160.0,0.00060491,60]
[358146609,1744766994685,-160.0,0.00060491,60]
[358146610,1744766994719,-160.0,0.00060491,60]
[358146611,1744766994752,-160.0,0.00060491,60]
[358146612,1744766994786,-160.0,0.00060491,60]
[358146613,1744766994818,-160.0,0.00060491,60]
[358146614,1744766994850,-160.0,0.00060491,60]
[358146615,1744766994885,-160.0,0.00060491,60]
[358146616,1744766994919,-160.0,0.00060491,60]
[358146617,1744766994953,-160.0,0.00060491,60]
[358146618,1744766994987,-150.0,0.00060492,120]
[358146619,1744766995021,-150.0,0.00060492,120]
[358146620,1744766995054,-150.0,0.00060537,120]
[358146621,1744766995088,-1357.49,0.00060547,120]
[358146622,1744766995124,-1912.02,0.00060547,120]
[358146623,1744766995162,-500.0,0.00060547,56]
[358146624,1744766995197,-579.21296096,0.00060547,120]
[358146625,1744766995232,-724.2,0.00060547,120]
[358146626,1744766995268,-1237.22,0.00060547,120]
[358146627,1744766995304,-562.55,0.00060547,120]
[358146628,1744766995339,-686.5,0.00060547,120]
[358146629,1744766995371,-515.52,0.00060547,120]
[358146630,1744766995406,-982.4,0.00060547,120]
[358146631,1744766995438,-794.88,0.00060547,118]
[358146632,1744766995471,-1301.59,0.00060547,120]
[358146633,1744766995504,-939.4,0.00060547,120]
[358146634,1744766995537,-1003.03,0.00060547,120]
[358146635,1744766995570,-1035.81,0.00060547,120]